[Event "Titled Tuesday Blitz November 07 Late 2023"]
[White "Hartikainen, Jarmo"]
[Black "Marcziter, Dmitrii"]
[WhiteFideId "503134"]
[BlackFideId "13900765"]
[WhiteElo "2158"]
[BlackElo "2344"]
[Result "0-1"]
[Round "3"]
[TimeControl "180+1"]
[Date "2023.11.07"]
[WhiteClock "0:00:05"]
[BlackClock "0:01:15"]
[Board "157"]

1. e4 {[%clk 0:03:00]}  c5 {[%clk 0:03:00]} 2. c3 {[%clk 0:03:00]}  d5 {[%clk 0:02:59]} 3. exd5 {[%clk 0:03:00]}  Qxd5 {[%clk 0:02:59]} 4. d4 {[%clk 0:03:01]}  Nf6 {[%clk 0:02:59]} 5. Nf3 {[%clk 0:03:01]}  Bg4 {[%clk 0:02:59]} 6. Be2 {[%clk 0:02:58]}  e6 {[%clk 0:02:59]} 7. Na3 {[%clk 0:02:57]}  cxd4 {[%clk 0:02:58]} 8. Nb5 {[%clk 0:02:57]}  Qd8 {[%clk 0:02:58]} 9. Nbxd4 {[%clk 0:02:57]}  a6 {[%clk 0:02:53]} 10. O-O {[%clk 0:02:56]}  Be7 {[%clk 0:02:52]} 11. a4 {[%clk 0:02:40]}  O-O {[%clk 0:02:49]} 12. c4 {[%clk 0:02:35]}  Nbd7 {[%clk 0:02:48]} 13. Be3 {[%clk 0:02:29]}  Rc8 {[%clk 0:02:45]} 14. b3 {[%clk 0:02:16]}  Qc7 {[%clk 0:02:39]} 15. Re1 {[%clk 0:01:52]}  Rfd8 {[%clk 0:02:37]} 16. Qc1 {[%clk 0:01:43]}  Nc5 {[%clk 0:02:32]} 17. Bf4 {[%clk 0:01:35]}  Bd6 {[%clk 0:02:19]} 18. Bxd6 {[%clk 0:01:32]}  Rxd6 {[%clk 0:02:16]} 19. Qf4 {[%clk 0:01:13]}  Rcd8 {[%clk 0:02:05]} 20. b4 {[%clk 0:01:05]}  Nce4 {[%clk 0:01:55]} 21. c5 {[%clk 0:01:03]}  R6d7 {[%clk 0:01:55]} 22. Qxc7 {[%clk 0:01:03]}  Rxc7 {[%clk 0:01:55]} 23. Rac1 {[%clk 0:00:49]}  Nd5 {[%clk 0:01:48]} 24. b5 {[%clk 0:00:42]}  axb5 {[%clk 0:01:46]} 25. axb5 {[%clk 0:00:42]}  Ndc3 {[%clk 0:01:37]} 26. Bc4 {[%clk 0:00:31]}  Rxc5 {[%clk 0:01:31]} 27. Bd3 {[%clk 0:00:21]}  Bxf3 {[%clk 0:01:22]} 28. Bxe4 {[%clk 0:00:19]}  Bxe4 {[%clk 0:01:18]} 29. Re3 {[%clk 0:00:05]}  Rxd4 {[%clk 0:01:15]} 0-1


[Site "https://www.chess.com"]

[Event "Titled Tuesday Blitz November 07 Late 2023"]
[White "VitaliyChayka"]
[Black "Ward, Ieuan C"]
[BlackFideId "406627"]
[WhiteElo "2131"]
[BlackElo "2341"]
[Result "0-1"]
[Round "3"]
[TimeControl "180+1"]
[Date "2023.11.07"]
[WhiteClock "0:00:14"]
[BlackClock "0:00:58"]
[Board "159"]

1. d4 {[%clk 0:02:58]}  Nf6 {[%clk 0:02:59]} 2. Bf4 {[%clk 0:02:58]}  d5 {[%clk 0:02:59]} 3. e3 {[%clk 0:02:57]}  e6 {[%clk 0:02:58]} 4. Nd2 {[%clk 0:02:56]}  Bd6 {[%clk 0:02:59]} 5. Bg3 {[%clk 0:02:55]}  c5 {[%clk 0:02:59]} 6. c3 {[%clk 0:02:55]}  Nc6 {[%clk 0:03:00]} 7. Ngf3 {[%clk 0:02:54]}  O-O {[%clk 0:03:00]} 8. Bd3 {[%clk 0:02:50]}  Re8 {[%clk 0:02:55]} 9. Ne5 {[%clk 0:02:50]}  Qc7 {[%clk 0:02:54]} 10. f4 {[%clk 0:02:48]}  a6 {[%clk 0:02:51]} 11. O-O {[%clk 0:02:45]}  b5 {[%clk 0:02:48]} 12. Bh4 {[%clk 0:02:40]}  Be7 {[%clk 0:02:40]} 13. Qf3 {[%clk 0:02:32]}  g6 {[%clk 0:02:19]} 14. Bg5 {[%clk 0:02:29]}  Nd7 {[%clk 0:02:14]} 15. Bxe7 {[%clk 0:02:06]}  Rxe7 {[%clk 0:02:10]} 16. Qh3 {[%clk 0:01:59]}  f6 {[%clk 0:01:51]} 17. Ng4 {[%clk 0:01:44]}  cxd4 {[%clk 0:01:39]} 18. exd4 {[%clk 0:01:42]}  f5 {[%clk 0:01:29]} 19. Nh6+ {[%clk 0:01:35]}  Kg7 {[%clk 0:01:28]} 20. g4 {[%clk 0:01:32]}  Nf6 {[%clk 0:01:18]} 21. gxf5 {[%clk 0:01:18]}  exf5 {[%clk 0:01:15]} 22. Rae1 {[%clk 0:01:09]}  Rxe1 {[%clk 0:01:07]} 23. Rxe1 {[%clk 0:01:08]}  Qxf4 {[%clk 0:01:06]} 24. Nf3 {[%clk 0:00:29]}  Qxh6 {[%clk 0:01:01]} 25. Qxh6+ {[%clk 0:00:23]}  Kxh6 {[%clk 0:01:01]} 26. Ne5 {[%clk 0:00:20]}  Nxe5 {[%clk 0:00:59]} 27. dxe5 {[%clk 0:00:14]}  Ne4 {[%clk 0:00:58]} 0-1


[Site "https://www.chess.com"]

[Event "Titled Tuesday Blitz November 07 Late 2023"]
[White "KorolDimitriy75"]
[Black "Yushko, Olga"]
[BlackFideId "14114500"]
[WhiteElo "2334"]
[BlackElo "2104"]
[Result "1-0"]
[Round "3"]
[TimeControl "180+1"]
[Date "2023.11.07"]
[WhiteClock "0:00:04"]
[BlackClock "0:00:00"]
[Board "162"]

1. d4 {[%clk 0:03:00]}  e6 {[%clk 0:02:59]} 2. c4 {[%clk 0:03:01]}  f5 {[%clk 0:02:58]} 3. Nf3 {[%clk 0:02:59]}  Nf6 {[%clk 0:02:58]} 4. g3 {[%clk 0:02:58]}  Be7 {[%clk 0:02:59]} 5. Bg2 {[%clk 0:02:58]}  d6 {[%clk 0:02:59]} 6. b3 {[%clk 0:02:55]}  O-O {[%clk 0:02:58]} 7. Bb2 {[%clk 0:02:55]}  Qe8 {[%clk 0:02:58]} 8. O-O {[%clk 0:02:54]}  Qg6 {[%clk 0:02:58]} 9. Nbd2 {[%clk 0:02:51]}  Nc6 {[%clk 0:02:57]} 10. Re1 {[%clk 0:02:45]}  Ne4 {[%clk 0:02:55]} 11. a3 {[%clk 0:02:28]}  Bd7 {[%clk 0:02:52]} 12. d5 {[%clk 0:02:17]}  Nd8 {[%clk 0:02:49]} 13. dxe6 {[%clk 0:02:03]}  Nxe6 {[%clk 0:02:47]} 14. Qc2 {[%clk 0:01:53]}  Rae8 {[%clk 0:02:43]} 15. e3 {[%clk 0:01:43]}  Bc6 {[%clk 0:02:29]} 16. Rad1 {[%clk 0:01:34]}  h5 {[%clk 0:02:16]} 17. b4 {[%clk 0:01:29]}  b6 {[%clk 0:02:09]} 18. Nb3 {[%clk 0:00:18]}  h4 {[%clk 0:02:03]} 19. Nbd4 {[%clk 0:00:18]}  Nxd4 {[%clk 0:02:00]} 20. Nxd4 {[%clk 0:00:19]}  Bb7 {[%clk 0:01:58]} 21. Nb5 {[%clk 0:00:19]}  hxg3 {[%clk 0:01:55]} 22. hxg3 {[%clk 0:00:19]}  Bd8 {[%clk 0:01:43]} 23. Nc3 {[%clk 0:00:16]}  Nxc3 {[%clk 0:01:31]} 24. Qxc3 {[%clk 0:00:16]}  Bxg2 {[%clk 0:01:30]} 25. Kxg2 {[%clk 0:00:17]}  Bf6 {[%clk 0:01:29]} 26. Qc2 {[%clk 0:00:16]}  Re4 {[%clk 0:01:09]} 27. Bxf6 {[%clk 0:00:14]}  Qxf6 {[%clk 0:01:10]} 28. c5 {[%clk 0:00:12]}  Qe6 {[%clk 0:01:00]} 29. cxd6 {[%clk 0:00:11]}  cxd6 {[%clk 0:01:01]} 30. Qd3 {[%clk 0:00:10]}  Rd8 {[%clk 0:00:55]} 31. Qd5 {[%clk 0:00:10]}  Kf7 {[%clk 0:00:53]} 32. Qxe6+ {[%clk 0:00:08]}  Kxe6 {[%clk 0:00:54]} 33. Rc1 {[%clk 0:00:08]}  Rd7 {[%clk 0:00:47]} 34. Rc6 {[%clk 0:00:07]}  Re5 {[%clk 0:00:42]} 35. Rec1 {[%clk 0:00:07]}  Rd5 {[%clk 0:00:42]} 36. R1c3 {[%clk 0:00:06]}  Rd2 {[%clk 0:00:41]} 37. Rc8 {[%clk 0:00:06]}  Ra2 {[%clk 0:00:37]} 38. Kf3 {[%clk 0:00:04]}  g5 {[%clk 0:00:35]} 39. Rg8 {[%clk 0:00:03]}  Kf7 {[%clk 0:00:29]} 40. Rxg5 {[%clk 0:00:02]}  Kf6 {[%clk 0:00:27]} 41. Rh5 {[%clk 0:00:03]}  Kg6 {[%clk 0:00:21]} 42. Rh4 {[%clk 0:00:03]}  d5 {[%clk 0:00:19]} 43. Rd4 {[%clk 0:00:03]}  Kf6 {[%clk 0:00:19]} 44. Kg2 {[%clk 0:00:03]}  Ke5 {[%clk 0:00:19]} 45. Rcd3 {[%clk 0:00:03]}  Rd6 {[%clk 0:00:18]} 46. Kf3 {[%clk 0:00:03]}  a5 {[%clk 0:00:17]} 47. Rc3 {[%clk 0:00:03]}  axb4 {[%clk 0:00:18]} 48. axb4 {[%clk 0:00:04]}  Rb2 {[%clk 0:00:18]} 49. Rcd3 {[%clk 0:00:04]}  Ke6 {[%clk 0:00:17]} 50. g4 {[%clk 0:00:04]}  fxg4+ {[%clk 0:00:17]} 51. Rxg4 {[%clk 0:00:05]}  Kd7 {[%clk 0:00:16]} 52. Rf4 {[%clk 0:00:04]}  Kc6 {[%clk 0:00:16]} 53. Kg3 {[%clk 0:00:03]}  Rg6+ {[%clk 0:00:16]} 54. Kf3 {[%clk 0:00:03]}  Kb5 {[%clk 0:00:16]} 55. Rxd5+ {[%clk 0:00:03]}  Ka4 {[%clk 0:00:16]} 56. Rdd4 {[%clk 0:00:03]}  Re6 {[%clk 0:00:15]} 57. Rde4 {[%clk 0:00:03]}  Rh6 {[%clk 0:00:15]} 58. Rg4 {[%clk 0:00:02]}  Rh2 {[%clk 0:00:16]} 59. Kf4 {[%clk 0:00:02]}  Rhxf2+ {[%clk 0:00:16]} 60. Ke5 {[%clk 0:00:02]}  Rbc2 {[%clk 0:00:16]} 61. Rgf4 {[%clk 0:00:02]}  Rg2 {[%clk 0:00:16]} 62. Rf5 {[%clk 0:00:02]}  Rh2 {[%clk 0:00:16]} 63. Rf6 {[%clk 0:00:02]}  Rb2 {[%clk 0:00:15]} 64. Rxb6 {[%clk 0:00:02]}  Rh5+ {[%clk 0:00:14]} 65. Kf4 {[%clk 0:00:02]}  Rh4+ {[%clk 0:00:15]} 66. Kf3 {[%clk 0:00:03]}  Rxe4 {[%clk 0:00:16]} 67. Kxe4 {[%clk 0:00:03]}  Re2 {[%clk 0:00:16]} 68. Kd3 {[%clk 0:00:03]}  Re1 {[%clk 0:00:15]} 69. Rb8 {[%clk 0:00:03]}  Rd1+ {[%clk 0:00:16]} 70. Ke4 {[%clk 0:00:03]}  Re1 {[%clk 0:00:16]} 71. Kf4 {[%clk 0:00:03]}  Rf1+ {[%clk 0:00:16]} 72. Ke5 {[%clk 0:00:03]}  Kb3 {[%clk 0:00:14]} 73. e4 {[%clk 0:00:04]}  Kc4 {[%clk 0:00:15]} 74. b5 {[%clk 0:00:04]}  Kc5 {[%clk 0:00:15]} 75. b6 {[%clk 0:00:04]}  Kc6 {[%clk 0:00:16]} 76. Ke6 {[%clk 0:00:04]}  Rb1 {[%clk 0:00:15]} 77. e5 {[%clk 0:00:04]}  Rb5 {[%clk 0:00:15]} 78. Kf6 {[%clk 0:00:04]}  Rb1 {[%clk 0:00:14]} 79. e6 {[%clk 0:00:04]}  Rf1+ {[%clk 0:00:15]} 80. Ke7 {[%clk 0:00:05]}  Re1 {[%clk 0:00:15]} 81. Rd8 {[%clk 0:00:04]}  Kxb6 {[%clk 0:00:15]} 82. Rd2 {[%clk 0:00:04]}  Kc6 {[%clk 0:00:15]} 83. Kf7 {[%clk 0:00:04]}  Rf1+ {[%clk 0:00:15]} 84. Ke8 {[%clk 0:00:05]}  Re1 {[%clk 0:00:15]} 85. e7 {[%clk 0:00:05]}  Kc7 {[%clk 0:00:15]} 86. Rc2+ {[%clk 0:00:04]}  Kd6 {[%clk 0:00:15]} 87. Rd2+ {[%clk 0:00:04]}  Kc7 {[%clk 0:00:15]} 88. Rd4 {[%clk 0:00:04]}  Re2 {[%clk 0:00:15]} 89. Kf7 {[%clk 0:00:04]}  Rf2+ {[%clk 0:00:15]} 90. Ke6 {[%clk 0:00:04]}  Re2+ {[%clk 0:00:15]} 91. Kf6 {[%clk 0:00:03]}  Rf2+ {[%clk 0:00:15]} 92. Kg7 {[%clk 0:00:04]}  Rg2+ {[%clk 0:00:15]} 93. Kf8 {[%clk 0:00:04]}  Rf2+ {[%clk 0:00:15]} 94. Ke8 {[%clk 0:00:04]}  Re2 {[%clk 0:00:15]} 95. Rd5 {[%clk 0:00:04]}  Kc6 {[%clk 0:00:13]} 96. Rf5 {[%clk 0:00:04]}  Kd6 {[%clk 0:00:11]} 97. Rf6+ {[%clk 0:00:04]}  Kc7 {[%clk 0:00:09]} 98. Kf8 {[%clk 0:00:04]}  Kd7 {[%clk 0:00:00]} 99. Rf7 {[%clk 0:00:04]} 1-0


[Site "https://www.chess.com"]

[Event "Titled Tuesday Blitz November 07 Late 2023"]
[White "Bongo Akanga Ndjila, Barthelemy"]
[Black "Davidson, Kevin"]
[WhiteFideId "10609431"]
[BlackFideId "2056810"]
[WhiteElo "2006"]
[BlackElo "2331"]
[Result "1-0"]
[Round "3"]
[TimeControl "180+1"]
[Date "2023.11.07"]
[WhiteClock "0:01:24"]
[BlackClock "0:00:01"]
[Board "164"]

1. d4 {[%clk 0:02:55]}  Nf6 {[%clk 0:02:56]} 2. c4 {[%clk 0:02:55]}  g6 {[%clk 0:02:56]} 3. Nc3 {[%clk 0:02:55]}  Bg7 {[%clk 0:02:56]} 4. e4 {[%clk 0:02:55]}  d6 {[%clk 0:02:57]} 5. Be2 {[%clk 0:02:56]}  O-O {[%clk 0:02:57]} 6. Nf3 {[%clk 0:02:56]}  e5 {[%clk 0:02:56]} 7. O-O {[%clk 0:02:56]}  Nc6 {[%clk 0:02:56]} 8. d5 {[%clk 0:02:57]}  Ne7 {[%clk 0:02:57]} 9. b4 {[%clk 0:02:57]}  a5 {[%clk 0:02:56]} 10. Ba3 {[%clk 0:02:57]}  axb4 {[%clk 0:02:56]} 11. Bxb4 {[%clk 0:02:57]}  Nd7 {[%clk 0:02:56]} 12. a4 {[%clk 0:02:56]}  Bh6 {[%clk 0:02:56]} 13. a5 {[%clk 0:02:56]}  f5 {[%clk 0:02:55]} 14. Qc2 {[%clk 0:02:51]}  Nf6 {[%clk 0:02:44]} 15. c5 {[%clk 0:02:47]}  Nxe4 {[%clk 0:02:38]} 16. cxd6 {[%clk 0:02:45]}  cxd6 {[%clk 0:02:23]} 17. Nxe4 {[%clk 0:02:41]}  fxe4 {[%clk 0:02:22]} 18. Qxe4 {[%clk 0:02:41]}  Rf4 {[%clk 0:02:06]} 19. Qb1 {[%clk 0:02:39]}  Nxd5 {[%clk 0:01:51]} 20. Bd2 {[%clk 0:02:38]}  Bg4 {[%clk 0:01:01]} 21. Bxf4 {[%clk 0:02:34]}  Nxf4 {[%clk 0:01:01]} 22. Bd1 {[%clk 0:02:27]}  Bg7 {[%clk 0:00:51]} 23. Qxb7 {[%clk 0:02:22]}  Rb8 {[%clk 0:00:46]} 24. Qc6 {[%clk 0:02:02]}  Rc8 {[%clk 0:00:34]} 25. Qa4 {[%clk 0:01:56]}  d5 {[%clk 0:00:26]} 26. a6 {[%clk 0:01:52]}  Rc4 {[%clk 0:00:18]} 27. Qa2 {[%clk 0:01:37]}  e4 {[%clk 0:00:18]} 28. Bb3 {[%clk 0:01:35]}  exf3 {[%clk 0:00:11]} 29. Bxc4 {[%clk 0:01:35]}  dxc4 {[%clk 0:00:11]} 30. Qxc4+ {[%clk 0:01:34]}  Kh8 {[%clk 0:00:10]} 31. Qxf4 {[%clk 0:01:32]}  fxg2 {[%clk 0:00:10]} 32. Rfd1 {[%clk 0:01:31]}  Bxd1 {[%clk 0:00:08]} 33. a7 {[%clk 0:01:26]}  Bxa1 {[%clk 0:00:07]} 34. Qb8 {[%clk 0:01:25]}  Bf6 {[%clk 0:00:07]} 35. Qxd8+ {[%clk 0:01:24]}  Bxd8 {[%clk 0:00:01]} 36. a8=Q {[%clk 0:01:24]} 1-0


[Site "https://www.chess.com"]

[Event "Titled Tuesday Blitz November 07 Late 2023"]
[White "SlippperyWhenWet"]
[Black "Desideri, Ricardo Maruchi"]
[BlackFideId "2110440"]
[WhiteElo "2329"]
[BlackElo "1991"]
[Result "0-1"]
[Round "3"]
[TimeControl "180+1"]
[Date "2023.11.07"]
[WhiteClock "0:00:07"]
[BlackClock "0:01:13"]
[Board "166"]

1. e4 {[%clk 0:03:00]}  c5 {[%clk 0:02:58]} 2. Nc3 {[%clk 0:02:57]}  d6 {[%clk 0:02:56]} 3. Nge2 {[%clk 0:02:57]}  Nf6 {[%clk 0:02:54]} 4. d4 {[%clk 0:02:57]}  cxd4 {[%clk 0:02:54]} 5. Nxd4 {[%clk 0:02:58]}  a6 {[%clk 0:02:54]} 6. Nde2 {[%clk 0:02:49]}  e6 {[%clk 0:02:50]} 7. g3 {[%clk 0:02:47]}  Nc6 {[%clk 0:02:50]} 8. Bg2 {[%clk 0:02:47]}  Be7 {[%clk 0:02:49]} 9. O-O {[%clk 0:02:48]}  O-O {[%clk 0:02:49]} 10. h3 {[%clk 0:02:49]}  Qc7 {[%clk 0:02:49]} 11. Be3 {[%clk 0:02:48]}  b5 {[%clk 0:02:49]} 12. a3 {[%clk 0:02:47]}  Bb7 {[%clk 0:02:49]} 13. f4 {[%clk 0:02:41]}  Rac8 {[%clk 0:02:48]} 14. Qd2 {[%clk 0:02:39]}  Na5 {[%clk 0:02:44]} 15. Bf2 {[%clk 0:02:26]}  Nc4 {[%clk 0:02:43]} 16. Qc1 {[%clk 0:02:26]}  Rfd8 {[%clk 0:02:35]} 17. b3 {[%clk 0:02:25]}  Nb6 {[%clk 0:02:33]} 18. Qd2 {[%clk 0:02:20]}  d5 {[%clk 0:02:30]} 19. e5 {[%clk 0:02:19]}  Ne4 {[%clk 0:02:26]} 20. Nxe4 {[%clk 0:02:11]}  dxe4 {[%clk 0:02:26]} 21. Qe3 {[%clk 0:02:12]}  Nd5 {[%clk 0:02:20]} 22. Qxe4 {[%clk 0:02:11]}  Qxc2 {[%clk 0:02:19]} 23. Nd4 {[%clk 0:01:59]}  Qc7 {[%clk 0:02:08]} 24. f5 {[%clk 0:01:40]}  Nc3 {[%clk 0:02:05]} 25. Qg4 {[%clk 0:01:37]}  Bxg2 {[%clk 0:02:02]} 26. f6 {[%clk 0:01:33]}  Bf8 {[%clk 0:02:01]} 27. Kxg2 {[%clk 0:01:25]}  Qb7+ {[%clk 0:01:59]} 28. Kg1 {[%clk 0:01:24]}  g6 {[%clk 0:01:53]} 29. Rac1 {[%clk 0:01:09]}  Ne4 {[%clk 0:01:39]} 30. Rxc8 {[%clk 0:01:05]}  Rxc8 {[%clk 0:01:36]} 31. Be3 {[%clk 0:00:43]}  Rc3 {[%clk 0:01:29]} 32. Bf4 {[%clk 0:00:33]}  Bc5 {[%clk 0:01:25]} 33. Rd1 {[%clk 0:00:26]}  Qb6 {[%clk 0:01:23]} 34. Be3 {[%clk 0:00:22]}  Rxe3 {[%clk 0:01:21]} 35. Nxe6 {[%clk 0:00:22]}  Qxe6 {[%clk 0:01:17]} 36. Rd8+ {[%clk 0:00:14]}  Bf8 {[%clk 0:01:17]} 37. Qf4 {[%clk 0:00:13]}  Rxg3+ {[%clk 0:01:14]} 38. Kf1 {[%clk 0:00:11]}  Qxh3+ {[%clk 0:01:14]} 39. Ke2 {[%clk 0:00:07]}  Qh2+ {[%clk 0:01:13]} 0-1


[Site "https://www.chess.com"]

[Event "Titled Tuesday Blitz November 07 Late 2023"]
[White "Nita, Lucian"]
[Black "Dias, Joao Batista"]
[WhiteFideId "1206923"]
[BlackFideId "2108240"]
[WhiteElo "2321"]
[BlackElo "1967"]
[Result "1/2-1/2"]
[Round "3"]
[TimeControl "180+1"]
[Date "2023.11.07"]
[WhiteClock "0:00:19"]
[BlackClock "0:00:04"]
[Board "168"]

1. e4 {[%clk 0:03:00]}  e5 {[%clk 0:02:48]} 2. Nf3 {[%clk 0:03:00]}  Nc6 {[%clk 0:02:47]} 3. Bc4 {[%clk 0:03:00]}  Be7 {[%clk 0:02:47]} 4. O-O {[%clk 0:03:00]}  Nf6 {[%clk 0:02:47]} 5. Re1 {[%clk 0:02:59]}  O-O {[%clk 0:02:46]} 6. c3 {[%clk 0:02:59]}  d6 {[%clk 0:02:47]} 7. d4 {[%clk 0:02:58]}  Bg4 {[%clk 0:02:45]} 8. d5 {[%clk 0:02:57]}  Nb8 {[%clk 0:02:42]} 9. Be2 {[%clk 0:02:56]}  Nbd7 {[%clk 0:02:42]} 10. Nfd2 {[%clk 0:02:56]}  Bxe2 {[%clk 0:02:42]} 11. Qxe2 {[%clk 0:02:55]}  h6 {[%clk 0:02:41]} 12. c4 {[%clk 0:02:55]}  Nh7 {[%clk 0:02:40]} 13. Nc3 {[%clk 0:02:55]}  f5 {[%clk 0:02:40]} 14. f3 {[%clk 0:02:55]}  f4 {[%clk 0:02:40]} 15. b4 {[%clk 0:02:54]}  b6 {[%clk 0:02:40]} 16. a4 {[%clk 0:02:52]}  Qe8 {[%clk 0:02:32]} 17. Nb3 {[%clk 0:02:52]}  Qh5 {[%clk 0:02:28]} 18. c5 {[%clk 0:02:46]}  bxc5 {[%clk 0:02:28]} 19. bxc5 {[%clk 0:02:45]}  Ng5 {[%clk 0:02:25]} 20. cxd6 {[%clk 0:02:35]}  cxd6 {[%clk 0:02:24]} 21. Nb5 {[%clk 0:02:33]}  Rfc8 {[%clk 0:02:19]} 22. Ba3 {[%clk 0:02:32]}  Qg6 {[%clk 0:02:14]} 23. Rac1 {[%clk 0:02:32]}  a6 {[%clk 0:02:14]} 24. Nc7 {[%clk 0:02:28]}  Rab8 {[%clk 0:01:59]} 25. Na5 {[%clk 0:02:23]}  Nb6 {[%clk 0:01:50]} 26. Nxa6 {[%clk 0:02:17]}  Rxc1 {[%clk 0:01:49]} 27. Rxc1 {[%clk 0:02:17]}  Ra8 {[%clk 0:01:45]} 28. Nc6 {[%clk 0:02:16]}  Bf8 {[%clk 0:01:36]} 29. Ncb8 {[%clk 0:02:12]}  Nxa4 {[%clk 0:01:34]} 30. Rc8 {[%clk 0:02:11]}  Qf7 {[%clk 0:01:08]} 31. h4 {[%clk 0:02:10]}  Nh7 {[%clk 0:01:03]} 32. Rc7 {[%clk 0:02:09]}  Qf6 {[%clk 0:00:59]} 33. Qe1 {[%clk 0:01:54]}  Qd8 {[%clk 0:00:52]} 34. Rb7 {[%clk 0:01:52]}  Nc5 {[%clk 0:00:48]} 35. Bxc5 {[%clk 0:01:50]}  dxc5 {[%clk 0:00:46]} 36. Nc6 {[%clk 0:01:44]}  Qc8 {[%clk 0:00:39]} 37. Rb8 {[%clk 0:01:26]}  Qxa6 {[%clk 0:00:37]} 38. Qb1 {[%clk 0:01:16]}  Rxb8 {[%clk 0:00:35]} 39. Qxb8 {[%clk 0:01:15]}  Qa1+ {[%clk 0:00:27]} 40. Kh2 {[%clk 0:01:15]}  Qe1 {[%clk 0:00:27]} 41. Ne7+ {[%clk 0:01:06]}  Kf7 {[%clk 0:00:26]} 42. Nf5 {[%clk 0:01:05]}  g6 {[%clk 0:00:20]} 43. Qxe5 {[%clk 0:00:54]}  gxf5 {[%clk 0:00:19]} 44. Qxf5+ {[%clk 0:00:53]}  Nf6 {[%clk 0:00:19]} 45. Qxf4 {[%clk 0:00:50]}  Be7 {[%clk 0:00:18]} 46. e5 {[%clk 0:00:50]}  c4 {[%clk 0:00:16]} 47. d6 {[%clk 0:00:49]}  Bd8 {[%clk 0:00:16]} 48. exf6 {[%clk 0:00:44]}  Bxf6 {[%clk 0:00:15]} 49. d7 {[%clk 0:00:43]}  Qd1 {[%clk 0:00:14]} 50. Qxc4+ {[%clk 0:00:42]}  Ke7 {[%clk 0:00:13]} 51. Qg8 {[%clk 0:00:30]}  Qd6+ {[%clk 0:00:12]} 52. g3 {[%clk 0:00:27]}  Qd2+ {[%clk 0:00:11]} 53. Kh3 {[%clk 0:00:27]}  Qxd7+ {[%clk 0:00:10]} 54. Qg4 {[%clk 0:00:24]}  Qd1 {[%clk 0:00:08]} 55. Qe4+ {[%clk 0:00:23]}  Kf7 {[%clk 0:00:07]} 56. Qh7+ {[%clk 0:00:23]}  Ke6 {[%clk 0:00:07]} 57. Kg4 {[%clk 0:00:21]}  Qd4+ {[%clk 0:00:05]} 58. Kh5 {[%clk 0:00:20]}  Qe5+ {[%clk 0:00:05]} 59. Kg4 {[%clk 0:00:19]}  Qd4+ {[%clk 0:00:03]} 60. f4 {[%clk 0:00:19]}  Qd1+ {[%clk 0:00:03]} 61. Kh3 {[%clk 0:00:19]}  Qf1+ {[%clk 0:00:02]} 62. Kg4 {[%clk 0:00:19]}  Qd1+ {[%clk 0:00:03]} 63. Kh3 {[%clk 0:00:19]}  Qf1+ {[%clk 0:00:03]} 64. Kh2 {[%clk 0:00:19]}  Qf2+ {[%clk 0:00:03]} 65. Kh3 {[%clk 0:00:19]}  Qf1+ {[%clk 0:00:04]} 1/2-1/2


[Site "https://www.chess.com"]

[Event "Titled Tuesday Blitz November 07 Late 2023"]
[White "Burke, Paul"]
[Black "Szente Varga, Fruzsina"]
[WhiteFideId "2605767"]
[BlackFideId "712264"]
[WhiteElo "1879"]
[BlackElo "2314"]
[Result "0-1"]
[Round "3"]
[TimeControl "180+1"]
[Date "2023.11.07"]
[WhiteClock "0:00:01"]
[BlackClock "0:00:25"]
[Board "170"]

1. e4 {[%clk 0:03:00]}  c5 {[%clk 0:02:39]} 2. Nf3 {[%clk 0:03:00]}  Nc6 {[%clk 0:02:39]} 3. d4 {[%clk 0:03:00]}  cxd4 {[%clk 0:02:39]} 4. c3 {[%clk 0:03:00]}  Nf6 {[%clk 0:02:36]} 5. e5 {[%clk 0:02:59]}  Nd5 {[%clk 0:02:37]} 6. cxd4 {[%clk 0:02:59]}  d6 {[%clk 0:02:37]} 7. Be2 {[%clk 0:02:49]}  g6 {[%clk 0:02:36]} 8. O-O {[%clk 0:02:48]}  Bg7 {[%clk 0:02:36]} 9. exd6 {[%clk 0:02:47]}  Qxd6 {[%clk 0:02:36]} 10. Nc3 {[%clk 0:02:45]}  O-O {[%clk 0:02:29]} 11. Nxd5 {[%clk 0:02:39]}  Qxd5 {[%clk 0:02:29]} 12. Be3 {[%clk 0:02:39]}  Rd8 {[%clk 0:02:20]} 13. Qd2 {[%clk 0:02:26]}  Bf5 {[%clk 0:02:05]} 14. Rfd1 {[%clk 0:02:23]}  Rac8 {[%clk 0:02:05]} 15. b3 {[%clk 0:02:10]}  a5 {[%clk 0:01:59]} 16. Bc4 {[%clk 0:02:09]}  Qd7 {[%clk 0:01:58]} 17. Rac1 {[%clk 0:01:53]}  Bg4 {[%clk 0:01:55]} 18. Be2 {[%clk 0:01:10]}  Bxf3 {[%clk 0:01:54]} 19. Bxf3 {[%clk 0:01:08]}  Nxd4 {[%clk 0:01:55]} 20. Bxd4 {[%clk 0:01:07]}  Bxd4 {[%clk 0:01:54]} 21. Qxa5 {[%clk 0:01:01]}  b6 {[%clk 0:01:31]} 22. Qd2 {[%clk 0:00:54]}  Qa7 {[%clk 0:01:27]} 23. Qe2 {[%clk 0:00:45]}  e5 {[%clk 0:01:22]} 24. g3 {[%clk 0:00:39]}  Qa3 {[%clk 0:01:17]} 25. Rxc8 {[%clk 0:00:30]}  Rxc8 {[%clk 0:01:18]} 26. Bd5 {[%clk 0:00:22]}  Rc3 {[%clk 0:00:55]} 27. Rxd4 {[%clk 0:00:16]}  exd4 {[%clk 0:00:56]} 28. Qe8+ {[%clk 0:00:14]}  Qf8 {[%clk 0:00:57]} 29. Qe5 {[%clk 0:00:14]}  Rc1+ {[%clk 0:00:55]} 30. Kg2 {[%clk 0:00:13]}  d3 {[%clk 0:00:54]} 31. Qe3 {[%clk 0:00:13]}  Rc3 {[%clk 0:00:48]} 32. Qd2 {[%clk 0:00:11]}  Qc5 {[%clk 0:00:48]} 33. Bc4 {[%clk 0:00:09]}  Rc2 {[%clk 0:00:47]} 34. Qxd3 {[%clk 0:00:09]}  Qxf2+ {[%clk 0:00:47]} 35. Kh3 {[%clk 0:00:09]}  Qxh2+ {[%clk 0:00:48]} 36. Kg4 {[%clk 0:00:09]}  h5+ {[%clk 0:00:32]} 37. Kf4 {[%clk 0:00:09]}  Qf2+ {[%clk 0:00:31]} 38. Kg5 {[%clk 0:00:07]}  Qd2+ {[%clk 0:00:23]} 39. Kf6 {[%clk 0:00:06]}  Qxd3 {[%clk 0:00:23]} 40. Bxd3 {[%clk 0:00:05]}  Rxa2 {[%clk 0:00:23]} 41. Bc4 {[%clk 0:00:05]}  Rf2+ {[%clk 0:00:24]} 42. Kg5 {[%clk 0:00:05]}  Kg7 {[%clk 0:00:24]} 43. Kh4 {[%clk 0:00:04]}  f6 {[%clk 0:00:25]} 44. Kh3 {[%clk 0:00:01]}  Kh6 {[%clk 0:00:25]} 0-1


[Site "https://www.chess.com"]